fUST/lending_fUST_20240413
["ID","MTS","AMOUNT","RATE_DAILY","PERIOD"]
[322397565,1712979038548,-402.0,0.00037755,35]
[322397566,1712979038557,-290.86,0.00037757,35]
[322397567,1712979038566,-150.5,0.00037757,35]
[322397568,1712979038576,-1965.0,0.00037757,35]
[322397569,1712979038585,-183.99725732,0.0003776,10]
[322397570,1712979038594,-160.0,0.00037764,10]
[322397571,1712979038603,-231.95804009,0.00037766,4]
[322397572,1712979038612,-2191.97687287,0.00037767,4]
[322397573,1712979038621,-1014.05805107,0.00037767,4]
[322397574,1712979038630,-190.28618432,0.00037768,4]
[322397575,1712979038639,-2663.03812258,0.00037768,4]
[322397576,1712979038648,-156.5699296,0.00037768,4]
[322397577,1712979038657,-182.16691677,0.00037768,4]
[322397578,1712979038666,-301.81926402,0.00037769,4]
[322397579,1712979038675,-2892.94697559,0.0003777,60]
[322397580,1712979038688,-711.01760037,0.00037772,4]
[322397581,1712979038698,-954522.45316293,0.00037772,60]
[322397667,1712979043330,-43228.64450667,0.00037772,60]
[322397720,1712980232448,-207.914593,0.00027397,2]
[322397722,1712980232458,-218.612363,0.00027397,2]
[322397724,1712980232467,-400.0,0.00033032,2]
[322397725,1712980232477,-8774.84392667,0.00033033,2]
[322397818,1712980238636,-1774.40645909,0.00033033,2]
[322397819,1712980238646,-24900.0,0.00033034,2]
[322397820,1712980238655,-207.914593,0.00033165,2]
[322397821,1712980238665,-218.612363,0.00033165,2]
[322397822,1712980238674,-219.820688,0.000332,2]
[322397823,1712980238684,-1246.3466701,0.0003412,2]
[322397824,1712980238693,-10619.43475223,0.00035,5]
[322397825,1712980238703,-337.791681,0.00035616,120]
[322397826,1712980238713,-185.98302997,0.00035672,2]
[322397827,1712980238723,-560.0,0.00036335,2]
[322397828,1712980238732,-153.0,0.00037162,2]
[322397829,1712980238742,-202.8732917,0.00037162,2]
[322397830,1712980238751,-1455.15662032,0.00037583,9]
[322397831,1712980238761,-2197.7840826,0.00037668,2]
[322397832,1712980238770,-2000.0,0.00037668,2]
[322397833,1712980238779,-168.7206,0.000377,2]
[322397834,1712980238789,-182.0,0.00037738,35]
[322397835,1712980238798,-184.0,0.00037738,35]
[322397836,1712980238808,-402.0,0.00037738,35]
[322397837,1712980238817,-151.68,0.00037742,35]
[322397838,1712980238826,-176.0,0.00037742,35]
[322397839,1712980238835,-1965.0,0.00037742,35]
[322397840,1712980238853,-182.0,0.00037748,35]
[322397841,1712980238863,-184.0,0.00037748,35]
[322397842,1712980238873,-402.0,0.00037748,35]
[322397843,1712980238883,-150.5,0.00037752,35]
[322397844,1712980238892,-176.0,0.00037752,35]
[322397845,1712980238902,-1965.0,0.00037752,35]
[322397846,1712980238912,-182.0,0.00037758,35]
[322397847,1712980238921,-184.0,0.00037758,35]
[322397848,1712980238931,-150.5,0.00037758,35]
[322397849,1712980238941,-290.86,0.00037758,35]
[322397850,1712980238951,-150.5,0.00037758,35]
[322397851,1712980238960,-402.0,0.00037758,35]
[322397852,1712980238970,-150.5,0.00037762,35]
[322397853,1712980238979,-176.0,0.00037762,35]
[322397854,1712980238988,-1965.0,0.00037762,35]
[322397855,1712980238998,-190.8951519,0.00037766,4]
[322397856,1712980239007,-160.0,0.00037767,10]
[322397857,1712980239016,-56047.30136564,0.00037768,5]
[322397858,1712980239025,-872854.90238121,0.00037768,60]
[322397893,1712980243523,-268.47747808,0.00037768,60]
[322397988,1712981438648,-190.8951519,0.00027396,2]
[322397989,1712981438658,-159.8728012,0.00027397,2]
[322397990,1712981438667,-163.696079,0.00027397,2]
[322397991,1712981438677,-3469.68121032,0.00032048,4]
[322397992,1712981438686,-400.0,0.00032049,2]
[322397993,1712981438695,-24900.0,0.00032051,2]
[322397994,1712981438704,-219.820688,0.00032195,2]
[322397995,1712981438714,-10619.43475223,0.00035,5]
[322397996,1712981438723,-560.0,0.00035254,2]
[322397997,1712981438732,-253.34376,0.00035616,120]
[322397998,1712981438741,-500.0,0.00036821,120]
[322397999,1712981438750,-509.04,0.00036821,120]
[322398000,1712981438760,-500.0,0.00036821,120]
[322398002,1712981438769,-524.86,0.00036821,120]
[322398003,1712981438779,-520.2,0.00036821,120]
[322398005,1712981438788,-500.0,0.00036821,120]
[322398009,1712981438798,-500.0,0.00036821,120]
[322398012,1712981438807,-500.0,0.00036821,120]
[322398015,1712981438816,-500.0,0.00036821,120]
[322398017,1712981438826,-365.24,0.00036821,120]
[322398020,1712981438836,-216.85339921,0.00037017,2]
[322398022,1712981438846,-1333.84019261,0.00037579,9]
[322398024,1712981438855,-2000.0,0.00037648,2]
[322398026,1712981438864,-1978.00567434,0.00037649,2]
[322398028,1712981438874,-202.8732917,0.000377,2]
[322398030,1712981438883,-168.7206,0.000377,2]
[322398032,1712981438892,-151.68,0.00037718,35]
[322398034,1712981438901,-197.0,0.00037718,35]
[322398036,1712981438910,-1965.0,0.00037718,35]
[322398038,1712981438920,-182.0,0.00037718,35]
[322398040,1712981438930,-402.0,0.00037718,35]
[322398042,1712981438939,-150.5,0.00037728,35]
[322398044,1712981438947,-197.0,0.00037728,35]
[322398046,1712981438956,-1965.0,0.00037728,35]
[322398048,1712981438965,-182.0,0.00037728,35]
[322398050,1712981438974,-402.0,0.00037728,35]
[322398052,1712981438983,-150.5,0.00037738,35]
[322398054,1712981438992,-197.0,0.00037738,35]
[322398056,1712981439002,-1965.0,0.00037738,35]
[322398058,1712981439010,-182.0,0.00037738,35]
[322398060,1712981439019,-402.0,0.00037738,35]
[322398062,1712981439028,-155.14148889,0.00037746,4]
[322398064,1712981439037,-225.5768185,0.00037746,4]
[322398066,1712981439046,-6968.83152015,0.00037747,4]
[322398068,1712981439055,-160.0,0.00037747,10]
[322398070,1712981439063,-183.99725732,0.00037747,10]
[322398072,1712981439072,-160.0,0.00037747,10]
[322398074,1712981439082,-56047.30136564,0.00037748,5]
[322398075,1712981439092,-814845.45344774,0.00037749,60]
[322398091,1712981439307,-274.81339921,0.00037749,60]
[322404555,1712982595826,-190.00782,0.00035616,120]
[322404556,1712982595851,-2892.94697559,0.00037772,60]
[322404620,1712982631787,-549.24705679,0.00026053,2]
[322404622,1712982631798,-156.90984275,0.00026054,2]
[322404624,1712982631807,-190.8951519,0.00026055,2]
[322404626,1712982631816,-4073.38428936,0.00026061,2]
[322404704,1712982637959,-3778.27206918,0.00026061,2]
[322404705,1712982637969,-300.0,0.00026061,2]
[322404706,1712982637979,-300.0,0.00026061,2]
[322404707,1712982637988,-18770.6383107,0.00026062,2]
[322404708,1712982637997,-163.72465499,0.00026537,2]
[322404709,1712982638007,-641.2662364,0.00026637,2]
[322404710,1712982638016,-675.1102724,0.00026688,2]
[322404711,1712982638026,-9408.14971572,0.00026688,2]
[322404712,1712982638035,-19441.8085645,0.00026761,2]
[322404713,1712982638045,-199.72427335,0.00027279,3]
[322404714,1712982638055,-272.15441,0.00027397,2]
[322404715,1712982638065,-187.123133,0.00027397,2]
[322404716,1712982638074,-24900.0,0.00027599,2]
[322404717,1712982638084,-1067.8916707,0.00027722,2]
[322404718,1712982638094,-163.72465496,0.00027778,2]
[322404719,1712982638103,-166.666666,0.00027794,2]
[322404720,1712982638113,-1176.680054,0.00027929,2]
[322404721,1712982638122,-420.0,0.00028202,2]
[322404722,1712982638131,-943.3986879,0.00028529,2]
[322404723,1712982638141,-250.0,0.00028529,2]
[322404724,1712982638150,-166.666666,0.00028551,2]
[322404725,1712982638159,-420.0,0.00028667,2]
[322404726,1712982638170,-163.72465496,0.00029019,2]
[322404727,1712982638179,-610.8317068,0.00029096,2]
[322404728,1712982638188,-175.839467,0.00029225,2]
[322404729,1712982638198,-166.666666,0.00029309,2]
[322404730,1712982638207,-1017.16431048,0.00029943,2]
[322404731,1712982638217,-425.0,0.0003,2]
[322404732,1712982638226,-166.666666,0.00030067,2]
[322404733,1712982638238,-163.72465496,0.0003026,2]
[322404734,1712982638248,-587.0,0.00030519,2]
[322404735,1712982638257,-166.666666,0.00030825,2]
[322404736,1712982638266,-639.85821552,0.0003144,2]
[322404737,1712982638277,-163.72465496,0.00031501,2]
[322404738,1712982638286,-587.0,0.00031534,2]
[322404739,1712982638295,-166.666666,0.00031582,2]
[322404740,1712982638304,-500.0,0.00032045,2]
[322404741,1712982638315,-10139.30982104,0.00032046,7]
[322404742,1712982638325,-163.72465496,0.00032743,2]
[322404743,1712982638334,-620.99291078,0.00033012,2]
[322404744,1712982638343,-823.0,0.00033026,2]
[322404745,1712982638352,-187.123133,0.00033165,2]
[322404746,1712982638362,-163.72465496,0.00033984,2]
[322404747,1712982638371,-199.72427329,0.00034483,7]
[322404748,1712982638380,-620.04964554,0.00034663,2]
[322404749,1712982638389,-823.0,0.00034687,2]
[322404750,1712982638398,-10619.43475223,0.00035,5]
[322404751,1712982638408,-596.67479795,0.00035,2]
[322404752,1712982638417,-163.72465496,0.00035225,2]
[322404753,1712982638427,-666.75,0.00035616,2]
[322404754,1712982638436,-944.67132722,0.00035672,2]
[322404755,1712982638446,-378.0,0.00035739,2]
[322404756,1712982638456,-620.00248228,0.00036396,2]
[322404757,1712982638465,-163.72465496,0.00036466,2]
[322404758,1712982638474,-202.8732917,0.00036932,2]
[322404759,1712982638484,-967.0,0.00037,2]
[322404760,1712982638493,-13028.70346636,0.00037506,2]
[322404761,1712982638502,-707.45691136,0.00037649,2]
[322404762,1712982638512,-151.08460738,0.00037678,2]
[322404763,1712982638523,-250.63123349,0.00037678,2]
[322404764,1712982638533,-168.7206,0.000377,2]
[322404765,1712982638543,-163.72465496,0.00037707,2]
[322404766,1712982638553,-1780.20510696,0.00037707,2]
[322404767,1712982638562,-184.0,0.00037719,35]
[322404768,1712982638572,-151.68,0.00037719,35]
[322404769,1712982638581,-191.0,0.00037719,35]
[322404770,1712982638591,-1965.0,0.00037719,35]
[322404771,1712982638600,-184.0,0.00037729,35]
[322404772,1712982638611,-150.5,0.00037729,35]
[322404773,1712982638621,-191.0,0.00037729,35]
[322404774,1712982638630,-1965.0,0.00037729,35]
[322404775,1712982638639,-184.0,0.00037739,35]
[322404776,1712982638649,-150.5,0.00037739,35]
[322404777,1712982638658,-150.5,0.00037739,35]
[322404778,1712982638667,-191.0,0.00037739,35]
[322404779,1712982638676,-1965.0,0.00037739,35]
[322404780,1712982638686,-362.5371589,0.00037744,4]
[322404781,1712982638695,-821.14092844,0.00037744,4]
[322404782,1712982638704,-6968.83152015,0.00037744,4]
[322404783,1712982638713,-155.14148889,0.00037744,4]
[322404784,1712982638723,-225.5768185,0.00037744,4]
[322404785,1712982638733,-2638.78987995,0.00037745,4]
[322404786,1712982638742,-56047.30136564,0.00037746,5]
[322404787,1712982638751,-59008.25304668,0.00037746,4]
[322404788,1712982638760,-929.04577784,0.00037749,4]
[322404789,1712982638770,-155.08840039,0.00037749,20]
[322404790,1712982638779,-21578.49782935,0.00037749,4]
[322404791,1712982638788,-1014.05805107,0.00037749,4]
[322404792,1712982638798,-276.22880515,0.00037749,2]
[322404793,1712982638807,-155.08374522,0.00037749,4]
[322404794,1712982638817,-359.50186365,0.00037749,20]
[322404795,1712982638826,-517.55625264,0.00037749,4]
[322404796,1712982638835,-517.55625264,0.00037749,4]
[322404797,1712982638845,-517.55625264,0.00037749,4]
[322404798,1712982638854,-402.0,0.00037749,35]
[322404799,1712982638864,-182.0,0.00037749,35]
[322404800,1712982638874,-402.0,0.00037759,35]
[322404801,1712982638883,-182.0,0.00037759,35]
[322404802,1712982638893,-150.5,0.00037769,35]
[322404803,1712982638902,-402.0,0.00037769,35]
[322404804,1712982638911,-290.86,0.00037769,35]
[322404805,1712982638922,-182.0,0.00037769,35]
[322404806,1712982638931,-156.5699296,0.0003777,4]
[322404807,1712982638940,-231.95804009,0.0003777,4]
[322404808,1712982638950,-190.28618432,0.0003777,4]
[322404809,1712982638959,-2663.03812258,0.0003777,4]
[322404810,1712982638968,-182.16691677,0.0003777,4]
[322404811,1712982638978,-301.81926402,0.0003777,4]
[322404812,1712982638987,-711.01760037,0.0003777,4]
[322404813,1712982638997,-506.33746488,0.00037772,4]
[322404814,1712982639006,-154.803619,0.00037779,2]
[322404815,1712982639016,-151.603787,0.00037779,2]
[322404816,1712982639025,-416.1750862,0.00037781,2]
[322404817,1712982639036,-368.13931187,0.00037782,4]
[322404818,1712982639046,-250.30199299,0.00037782,4]
[322404819,1712982639055,-2187.50044305,0.00037783,2]
[322404820,1712982639064,-586.0,0.000378,2]
[322404821,1712982639074,-218.49,0.000378,2]
[322404822,1712982639083,-160.0,0.00037806,10]
[322404823,1712982639093,-160.0,0.00037806,10]
[322404824,1712982639102,-151.0,0.00037807,2]
[322404825,1712982639111,-151.0,0.00037807,2]
[322404826,1712982639121,-587.66419,0.00037807,2]
[322404827,1712982639132,-587.66419,0.00037807,2]
[322404828,1712982639141,-151.96446,0.00037807,2]
[322404829,1712982639150,-151.0,0.00037807,2]
[322404830,1712982639160,-151.0,0.00037807,2]
[322404831,1712982639172,-151.0,0.00037807,2]
[322404832,1712982639181,-151.0,0.00037807,2]
[322404833,1712982639190,-151.0,0.00037807,2]
[322404834,1712982639199,-151.0,0.00037807,2]
[322404835,1712982639209,-151.0,0.00037807,2]
[322404836,1712982639218,-151.0,0.00037807,2]
[322404837,1712982639227,-1874.159298,0.00037807,2]
[322404838,1712982639240,-1874.159298,0.00037807,2]
[322404839,1712982639249,-151.0,0.00037807,2]
[322404840,1712982639259,-1872.421823,0.00037807,2]
[322404841,1712982639268,-1872.421823,0.00037807,2]
[322404842,1712982639278,-306.260806,0.00037807,2]
[322404843,1712982639287,-306.260806,0.00037807,2]
[322404844,1712982639297,-151.0,0.00037807,2]
[322404845,1712982639306,-151.0,0.00037807,2]
[322404846,1712982639317,-151.0,0.00037807,2]
[322404847,1712982639327,-280.812343,0.00037807,2]
[322404848,1712982639336,-360.942903,0.00037807,2]
[322404849,1712982639346,-151.0,0.00037807,2]
[322404850,1712982639355,-360.942903,0.00037807,2]
[322404851,1712982639365,-151.0,0.00037807,2]
[322404853,1712982639374,-151.0,0.00037807,2]
[322404855,1712982639384,-151.0,0.00037807,2]
[322404857,1712982639394,-248.62989,0.00037807,2]
[322404859,1712982639403,-248.62989,0.00037807,2]
[322404860,1712982639412,-151.0,0.00037807,2]
[322404862,1712982639422,-568540.28981824,0.00037807,60]
[322404871,1712982639747,-23787.07805488,0.00037807,60]
[322404904,1712982647637,-259.23441945,0.00028307,2]
[322404905,1712982647646,-473.71980278,0.00037646,2]
[322404911,1712982896297,190.00782,0.00035681,120]
[322404955,1712983475498,190.00782,0.00035616,120]
[322404957,1712983795585,3246.75,0.00037807,60]
[322405174,1712983838791,-155.09150399,0.00027396,2]
[322405175,1712983838801,-196.751126,0.00027397,2]
[322405176,1712983838810,-196.751126,0.00033165,2]
[322405177,1712983838823,-163.72465496,0.00034286,2]
[322405178,1712983838832,-400.0,0.00034385,2]
[322405179,1712983838842,-10549.25038576,0.00034386,2]
[322405180,1712983838850,-588.340027,0.00034497,2]
[322405181,1712983838859,-250.0,0.00034681,2]
[322405182,1712983838868,-638.97,0.00035616,2]
[322405183,1712983838877,-1014.05805107,0.00035616,4]
[322405184,1712983838887,-155.08995217,0.00035616,2]
[322405185,1712983838899,-21578.49782935,0.00035616,4]
[322405186,1712983838908,-155.08995217,0.00035616,4]
[322405187,1712983838918,-155.08995217,0.00035616,20]
[322405188,1712983838937,-929.04577784,0.00035616,4]
[322405189,1712983838948,-506.33746488,0.00035616,4]
[322405190,1712983838957,-517.55625264,0.00035616,4]
[322405191,1712983838967,-517.55625264,0.00035616,4]
[322405193,1712983838976,-629.78088481,0.00035707,2]
[322405196,1712983838987,-178.52894,0.00036333,2]
[322405198,1712983838997,-416.1750862,0.00036986,2]
[322405200,1712983839006,-359.50186365,0.00037646,20]
[322405202,1712983839015,-276.22880515,0.00037646,2]
[322405204,1712983839025,-1526.28019722,0.00037672,2]
[322405206,1712983839034,-1780.20510696,0.00037672,2]
[322405208,1712983839043,-402.0,0.00037742,35]
[322405210,1712983839053,-182.0,0.00037742,35]
[322405212,1712983839063,-150.5,0.00037742,35]
[322405214,1712983839072,-151.68,0.00037742,35]
[322405216,1712983839082,-192.0,0.00037742,35]
[322405239,1712983839287,-1965.0,0.00037742,35]
[322405241,1712983839299,-402.0,0.00037752,35]
[322405243,1712983839308,-182.0,0.00037752,35]
[322405245,1712983839318,-150.5,0.00037752,35]
[322405247,1712983839327,-150.5,0.00037752,35]
[322405249,1712983839337,-192.0,0.00037752,35]
[322405251,1712983839346,-1965.0,0.00037752,35]
[322405253,1712983839355,-402.0,0.00037762,35]
[322405255,1712983839365,-182.0,0.00037762,35]
[322405257,1712983839377,-150.5,0.00037762,35]
[322405261,1712983839389,-150.5,0.00037762,35]
[322405265,1712983839401,-150.5,0.00037762,35]
[322405268,1712983839412,-192.0,0.00037762,35]
[322405271,1712983839423,-1965.0,0.00037762,35]
[322405274,1712983839433,-150.5,0.00037762,35]
[322405277,1712983839444,-290.86,0.00037762,35]
[322405280,1712983839454,-9088.56662828,0.00037767,5]
[322405283,1712983839464,-225.5768185,0.00037769,4]
[322405285,1712983839474,-362.5371589,0.00037769,4]
[322405287,1712983839484,-6968.83152015,0.00037769,4]
[322405289,1712983839495,-821.14092844,0.00037769,4]
[322405291,1712983839505,-155.14148889,0.0003777,4]
[322405293,1712983839514,-2638.78987995,0.0003777,4]
[322405295,1712983839524,-59008.25304668,0.00037771,4]
[322405297,1712983839533,-183.99725732,0.00037771,10]
[322405299,1712983839545,-160.0,0.00037771,10]
[322405301,1712983839555,-160.0,0.00037771,10]
[322405304,1712983839564,-56047.30136564,0.00037772,5]
[322405307,1712983839573,-498389.95501023,0.00037772,60]
[322405310,1712983839582,-565.3174782,0.00037772,30]
[322405313,1712983839598,-956.85972954,0.00037772,120]
[322405316,1712983839608,-503.32856944,0.00037772,30]
[322405319,1712983839617,-66326.82993085,0.00037772,2]
[322405714,1712983843408,-3290.26394841,0.00033361,2]
[322406014,1712983846315,-613.76654535,0.00033361,2]
[322407820,1712983866891,207.32476882,0.00037807,60]
[322409508,1712983900773,1126.78,0.00037772,60]
[322409527,1712984072493,190.00782,0.00035616,120]
[322409727,1712985032362,-155.08995217,0.00021963,2]
[322409730,1712985032372,-193.19406013,0.00021964,2]
[322409733,1712985032382,-470.44946322,0.00021965,2]
[322409736,1712985032392,-7851.65635854,0.00021979,2]
[322409739,1712985032402,-362.5371579,0.00022,2]
[322409742,1712985032412,-294.170013,0.00024662,2]
[322409745,1712985032421,-163.696079,0.00027397,2]
[322409748,1712985032431,-300.0,0.00028192,2]
[322409751,1712985032440,-4230.29880022,0.00028193,2]
[322409756,1712985032455,-20669.70119978,0.00028193,2]
[322409758,1712985032465,-171.1922343,0.00030164,4]
[322409761,1712985032474,-620.00012411,0.00030264,2]
[322409764,1712985032484,-1959.93174889,0.00031,2]
[322409767,1712985032493,-420.0,0.00031011,2]
[322409769,1712985032503,-620.00000621,0.00031778,2]
[322409771,1712985032513,-620.00000031,0.00033366,2]
[322409773,1712985032523,-587.0,0.00034112,2]
[322409775,1712985032532,-10254.77036342,0.00035,2]
[322409778,1712985032541,-1591.57803,0.00035,6]
[322409781,1712985032551,-222.56968711,0.00035616,4]
[322409784,1712985032561,-158.11952616,0.00035616,20]
[322409787,1712985032570,-457.32318665,0.00035616,4]
[322409790,1712985032580,-155.08995217,0.00035616,2]
[322409793,1712985032589,-1014.05805107,0.00035616,4]
[322409797,1712985032599,-7487.9636905,0.00035616,4]
[322409801,1712985032614,-7074.546735,0.00035616,4]
[322409838,1712985038406,-7015.98740385,0.00035616,4]
[322409839,1712985038415,-612.35,0.00035616,2]
[322409840,1712985038425,-656.83945148,0.00035616,4]
[322409841,1712985038434,-2191.97687287,0.00035616,4]
[322409842,1712985038443,-419.85392321,0.00035672,2]
[322409843,1712985038452,-500.0,0.000368,15]
[322409844,1712985038461,-500.0,0.000368,15]
[322409845,1712985038471,-195.04386159,0.000368,15]
[322409846,1712985038480,-294.170013,0.00036993,2]
[322409847,1712985038489,-171.19223424,0.00037129,8]
[322409848,1712985038498,-823.0,0.00037524,2]
[322409849,1712985038507,-363.58724597,0.00037583,9]
[322409850,1712985038516,-1602.18459621,0.00037641,2]
[322409851,1712985038525,-1965.0,0.00037711,35]
[322409852,1712985038535,-192.0,0.00037711,35]
[322409853,1712985038545,-151.68,0.00037711,35]
[322409854,1712985038554,-182.0,0.00037711,35]
[322409855,1712985038563,-402.0,0.00037711,35]
[322409856,1712985038572,-1965.0,0.00037721,35]
[322409857,1712985038581,-192.0,0.00037721,35]
[322409858,1712985038590,-150.5,0.00037721,35]
[322409859,1712985038599,-182.0,0.00037721,35]
[322409860,1712985038608,-402.0,0.00037721,35]
[322409861,1712985038617,-192.0,0.00037731,35]
[322409862,1712985038626,-1965.0,0.00037731,35]
[322409863,1712985038635,-150.5,0.00037731,35]
[322409864,1712985038644,-182.0,0.00037731,35]
[322409865,1712985038778,-402.0,0.00037731,35]
[322409866,1712985038789,-56047.30136564,0.00037735,5]
[322409867,1712985038798,-151.0,0.00037735,2]
[322409868,1712985038807,-151.0,0.00037735,2]
[322409869,1712985038816,-151.0,0.00037735,2]
[322409870,1712985038826,-151.0,0.00037735,2]
[322409872,1712985038835,-11143.63412298,0.00037735,30]
[322409874,1712985038844,-25014.62455866,0.00037735,2]
[322409876,1712985038853,-661.89807895,0.00037735,2]
[322409878,1712985038862,-347.90537947,0.00037735,30]
[322409880,1712985038871,-2027.85478027,0.00037735,2]
[322409882,1712985038880,-1003.70539617,0.00037735,2]
[322409884,1712985038889,-1001.77944041,0.00037735,2]
[322409886,1712985038898,-2727.2599325,0.00037735,2]
[322409888,1712985038907,-587679.63815354,0.00037735,60]
[322409907,1712985039322,-551.88645868,0.00037735,60]
[322409954,1712985043460,-368.492903,0.00037735,2]
[322409955,1712985043470,-17405.43530326,0.00037735,60]
[322410060,1712986233556,-953.28313122,0.00027384,2]
[322410061,1712986233566,-155.09150399,0.00027385,2]
[322410063,1712986233576,-3527.96379339,0.00027385,2]
[322410065,1712986233587,-549.24705679,0.00027386,2]
[322410068,1712986233597,-7851.65635854,0.00027387,2]
[322410069,1712986233607,-300.0,0.00027388,2]
[322410071,1712986233617,-168.410819,0.00027397,2]
[322410073,1712986233627,-177.076013,0.00027397,2]
[322410075,1712986233637,-420.0,0.00030127,2]
[322410077,1712986233647,-171.64,0.00032,2]
[322410079,1712986233656,-587.0,0.0003314,2]
[322410081,1712986233665,-168.410819,0.00033165,2]
[322410083,1712986233675,-177.076013,0.00033165,2]
[322410086,1712986233687,-24900.0,0.00034293,2]
[322410088,1712986233698,-3908.49310526,0.00035616,4]
[322410090,1712986233708,-586.84,0.00035616,2]
[322410092,1712986233718,-279.90261547,0.00035635,2]
[322410094,1712986233727,-925.31693807,0.00035851,4]
[322410096,1712986233737,-823.0,0.00036454,2]
[322410097,1712986233747,-155.11918638,0.0003736,30]
[322410098,1712986233756,-1441.96613658,0.00037622,2]
[322410099,1712986233766,-151.68,0.00037691,35]
[322410100,1712986233775,-192.0,0.00037691,35]
[322410101,1712986233785,-1965.0,0.00037691,35]
[322410102,1712986233795,-182.0,0.00037691,35]
[322410103,1712986233804,-402.0,0.00037692,35]
[322410104,1712986233814,-150.5,0.00037701,35]
[322410105,1712986233824,-192.0,0.00037701,35]
[322410106,1712986233835,-1965.0,0.00037701,35]
[322410107,1712986233846,-182.0,0.00037701,35]
[322410108,1712986233857,-402.0,0.00037702,35]
[322410109,1712986233867,-184.0,0.00037705,35]
[322410110,1712986233877,-150.5,0.00037711,35]
[322410111,1712986233886,-150.5,0.00037711,35]
[322410112,1712986233896,-192.0,0.00037711,35]
[322410113,1712986233906,-1965.0,0.00037711,35]
[322410114,1712986233915,-290.86,0.00037711,35]
[322410115,1712986233925,-182.0,0.00037711,35]
[322410116,1712986233935,-402.0,0.00037712,35]
[322410117,1712986233944,-184.0,0.00037715,35]
[322410118,1712986233954,-264.90607334,0.00037719,4]
[322410119,1712986233963,-155.40988289,0.00037719,4]
[322410120,1712986233973,-160.0,0.0003772,10]
[322410121,1712986233983,-160.0,0.0003772,10]
[322410122,1712986233992,-500.0,0.00037721,7]
[322410123,1712986234003,-500.0,0.00037721,7]
[322410124,1712986234012,-500.0,0.00037721,7]
[322410125,1712986234022,-500.0,0.00037721,7]
[322410126,1712986234031,-500.0,0.00037721,7]
[322410127,1712986234041,-500.0,0.00037721,7]
[322410128,1712986234050,-500.0,0.00037721,7]
[322410129,1712986234061,-500.0,0.00037721,7]
[322410130,1712986234070,-151.0,0.00037722,2]
[322410131,1712986234079,-56170.27670814,0.00037722,5]
[322410132,1712986234090,-32598.23571849,0.00037722,60]
[322410133,1712986234363,-500.0,0.00037721,7]
[322410134,1712986234373,-517.72449599,0.00037721,7]
[322410135,1712986234382,-1123.42064223,0.00037722,60]
[322410139,1712986239436,-1273.99064541,0.00035615,4]
[322410140,1712986239447,-500.0,0.00037721,7]
[322410141,1712986239457,-695161.29056318,0.00037722,60]
[322410509,1712986243651,-57227.78730772,0.00037722,60]
[322410908,1712987432669,-3527.96379339,0.00026874,2]
[322410910,1712987432679,-470.44946322,0.00026875,2]
[322410912,1712987432688,-240.94703798,0.00026875,2]
[322410914,1712987432698,-549.24705679,0.00026875,2]
[322410916,1712987432708,-155.09150399,0.00026876,2]
[322410918,1712987432718,-155.09150399,0.00026876,2]
[322410922,1712987432729,-1494.69948559,0.00026876,2]
[322410925,1712987432741,-155.09150399,0.00026877,2]
[322410928,1712987432750,-277.31237042,0.00026877,2]
[322410931,1712987432760,-2938.38641777,0.00026877,2]
[322410933,1712987432769,-300.0,0.00026879,2]
[322410935,1712987432778,-300.0,0.0002688,2]
[322410937,1712987432787,-176.186956,0.00026951,2]
[322410939,1712987432797,-24900.0,0.00026983,2]
[322410941,1712987432806,-171.19223424,0.00027083,3]
[322410943,1712987432815,-9523.6774779,0.00027183,2]
[322410945,1712987432825,-389.75507581,0.00027189,2]
[322410947,1712987432835,-5258.11080664,0.00027288,2]
[322410949,1712987432850,-8737.03518737,0.00027288,2]